fUSD/lending_fUSD_20250806
["ID","MTS","AMOUNT","RATE_DAILY","PERIOD"]
[377575980,1754445124521,-523.26,0.00036712,14]
[377575981,1754445124531,-2930.75,0.00036712,14]
[377575982,1754445124540,-400.0,0.00036712,14]
[377575983,1754445124549,-1049.79,0.00036712,14]
[377575984,1754445124558,-498.81,0.00036712,14]
[377575985,1754445124568,-434.13,0.00036712,14]
[377575986,1754445124578,-1830.96,0.00036712,14]
[377575987,1754445124590,-400.0,0.00036712,14]
[377575988,1754445124599,-1265.66,0.00036712,14]
[377575989,1754445124609,-400.0,0.00036712,14]
[377575990,1754445124619,-151.0,0.00036712,7]
[377575991,1754445124630,-1290.8,0.00036712,14]
[377575992,1754445124640,-400.0,0.00036712,14]
[377575993,1754445124650,-1113.65,0.00036712,14]
[377575994,1754445124662,-400.0,0.00036712,14]
[377575995,1754445124671,-400.0,0.00036712,14]
[377575996,1754445124682,-400.0,0.00036712,14]
[377575997,1754445124691,-151.0,0.00036712,7]
[377575998,1754445124702,-1132.02,0.00036712,14]
[377575999,1754445124713,-400.0,0.00036712,14]
[377576000,1754445124724,-400.0,0.00036712,14]
[377576001,1754445124736,-400.0,0.00036712,14]
[377576002,1754445124750,-400.0,0.00036712,14]
[377576003,1754445124760,-880.55,0.00036712,14]
[377576004,1754445124770,-632.81,0.00036712,14]
[377576005,1754445124780,-1935.98,0.00036712,14]
[377576006,1754445124790,-432.07,0.00036712,14]
[377576007,1754445124804,-565.44,0.00036712,14]
[377576008,1754445124822,-2058.7,0.00036712,14]
[377576009,1754445124832,-2459.29,0.00036712,14]
[377576010,1754445124846,-952.79,0.00036712,14]
[377576011,1754445124856,-400.0,0.00036712,14]
[377576012,1754445124866,-400.0,0.00036712,14]
[377576013,1754445124875,-400.0,0.00036712,14]
[377576014,1754445124886,-400.0,0.00036712,14]
[377576015,1754445124895,-651.88,0.00036712,14]
[377576016,1754445124905,-1468.29,0.00036712,14]
[377576017,1754445124915,-1615.6,0.00036712,14]
[377576018,1754445124925,-400.0,0.00036712,14]
[377576019,1754445124934,-400.0,0.00036712,14]
[377576020,1754445124943,-400.0,0.00036712,14]
[377576021,1754445124953,-620.14,0.00036712,14]
[377576022,1754445124963,-890.38,0.00036712,14]
[377576023,1754445125179,-1200.18,0.00036712,14]
[377576024,1754445125189,-1559.95,0.00036712,14]
[377576025,1754445125198,-554.46,0.00036712,14]
[377576026,1754445125207,-400.0,0.00036712,14]
[377576027,1754445125217,-740.32,0.00036712,14]
[377576028,1754445125227,-3323.49,0.00036712,14]
[377576029,1754445125236,-1792.71,0.00036712,14]
[377576030,1754445125246,-400.0,0.00036712,14]
[377576031,1754445125256,-670.67,0.00036712,14]
[377576032,1754445125265,-400.0,0.00036712,14]
[377576033,1754445125274,-400.0,0.00036712,14]
[377576034,1754445125285,-400.0,0.00036712,14]
[377576035,1754445125295,-423.31,0.00036712,14]
[377576036,1754445125304,-400.0,0.00036712,14]
[377576037,1754445125314,-400.0,0.00036712,14]
[377576038,1754445125323,-400.0,0.00036712,14]
[377576039,1754445125333,-629.22,0.00036712,14]
[377576040,1754445125346,-1278.36,0.00036712,14]
[377576041,1754445125355,-605.83,0.00036712,14]
[377576042,1754445125365,-1742.73,0.00036712,14]
[377576043,1754445125375,-840.63,0.00036712,14]
[377576044,1754445125384,-400.0,0.00036712,14]
[377576045,1754445125394,-151.145765,0.00036712,7]
[377576046,1754445125404,-2115.6,0.00036712,14]
[377576047,1754445125413,-400.0,0.00036712,14]
[377576048,1754445125423,-2121.86,0.00036712,14]
[377576049,1754445125432,-1594.04,0.00036712,14]
[377576050,1754445125441,-403.40501473,0.00036712,14]
[377576051,1754445125451,-1906.92,0.00036712,14]
[377576052,1754445125460,-400.0,0.00036712,14]
[377576053,1754445125470,-400.0,0.00036712,14]
[377576054,1754445125479,-2029.65,0.00036712,14]
[377576055,1754445125489,-1284.54,0.00036712,14]
[377576056,1754445125499,-639.18,0.00036712,14]
[377576057,1754445125508,-400.0,0.00036712,14]
[377576058,1754445125518,-400.0,0.00036712,14]
[377576059,1754445125527,-867.89,0.00036712,14]
[377576060,1754445125536,-400.0,0.00036712,14]
[377576061,1754445125546,-768.12,0.00036712,14]
[377576062,1754445125556,-986.68,0.00036712,14]
[377576063,1754445125566,-1728.43,0.00036712,14]
[377576064,1754445125575,-400.0,0.00036712,2]
[377576065,1754445125585,-400.0,0.00036712,14]
[377576066,1754445125601,-1056.28,0.00036712,14]
[377576067,1754445125610,-1087.98,0.00036712,14]
[377576068,1754445125620,-1331.35,0.00036712,14]
[377576069,1754445125630,-818.29,0.00036712,2]
[377576070,1754445125639,-400.0,0.00036712,14]
[377576071,1754445125649,-400.0,0.00036712,14]
[377576072,1754445125659,-1671.93,0.00036712,14]
[377576073,1754445125668,-915.29,0.00036712,14]
[377576074,1754445125678,-400.0,0.00036712,14]
[377576075,1754445125687,-166.945974,0.00036712,14]
[377576076,1754445125696,-987.79,0.00036712,14]
[377576077,1754445125706,-400.0,0.00036712,14]
[377576078,1754445125715,-400.0,0.00036712,2]
[377576079,1754445125725,-1706.07,0.00036712,14]
[377576080,1754445125734,-400.0,0.00036712,14]
[377576081,1754445125744,-400.0,0.00036712,14]
[377576082,1754445125754,-400.0,0.00036712,14]
[377576083,1754445125763,-400.0,0.00036712,14]
[377576084,1754445125773,-2398.75,0.00036712,14]
[377576085,1754445125783,-1209.91,0.00036712,14]
[377576086,1754445125793,-4680.28,0.00036712,14]
[377576087,1754445125808,-787.03,0.00036712,14]
[377576088,1754445125822,-1250.29,0.00036712,14]
[377576089,1754445125831,-850.29,0.00036712,14]
[377576090,1754445125844,-400.0,0.00036712,14]
[377576091,1754445125853,-453.59,0.00036712,14]
[377576092,1754445125863,-400.0,0.00036712,14]
[377576093,1754445125872,-2065.74,0.00036712,14]
[377576094,1754445125883,-400.0,0.00036712,14]
[377576095,1754445125892,-400.0,0.00036712,14]
[377576096,1754445125901,-400.0,0.00036712,14]
[377576097,1754445125911,-1925.3,0.00036712,14]
[377576098,1754445125922,-207.22619818,0.00036712,14]
[377576099,1754445125931,-449.51,0.00036712,14]
[377576100,1754445125942,-802.3,0.00036712,14]
[377576101,1754445125951,-509.04331685,0.00036712,14]
[377576102,1754445125960,-1899.36,0.00036712,14]
[377576103,1754445125970,-400.0,0.00036712,14]
[377576104,1754445125979,-400.0,0.00036712,14]
[377576105,1754445125989,-693.92,0.00036712,14]
[377576106,1754445125999,-400.0,0.00036712,14]
[377576107,1754445126008,-723.29,0.00036712,14]
[377576108,1754445126018,-827.55,0.00036712,14]
[377576109,1754445126027,-1605.43,0.00036712,14]
[377576110,1754445126037,-400.0,0.00036712,14]
[377576111,1754445126046,-1841.43,0.00036712,14]
[377576112,1754445126055,-400.0,0.00036712,14]
[377576113,1754445126065,-400.0,0.00036712,14]
[377576114,1754445126074,-400.0,0.00036712,14]
[377576115,1754445126083,-400.0,0.00036712,14]
[377576116,1754445126094,-400.0,0.00036712,14]
[377576117,1754445126104,-400.0,0.00036712,14]
[377576118,1754445126113,-2206.71,0.00036712,14]
[377576119,1754445126123,-2337.97,0.00036712,14]
[377576120,1754445126133,-400.0,0.00036712,14]
[377576121,1754445126142,-1457.88,0.00036712,14]
[377576122,1754445126152,-1789.45,0.00036712,14]
[377576123,1754445126161,-2047.12,0.00036712,14]
[377576124,1754445126171,-2197.84,0.00036712,14]
[377576125,1754445126181,-400.0,0.00036712,14]
[377576126,1754445126190,-400.0,0.00036712,14]
[377576127,1754445126200,-677.89,0.00036712,14]
[377576128,1754445126209,-2021.48,0.00036712,14]
[377576129,1754445126219,-400.0,0.00036712,14]
[377576130,1754445126229,-565.33,0.00036712,14]
[377576131,1754445126238,-1499.56,0.00036712,14]
[377576132,1754445126248,-400.0,0.00036712,2]
[377576133,1754445126257,-400.0,0.00036712,14]
[377576134,1754445126267,-426.85,0.00036712,14]
[377576135,1754445126276,-513.08662013,0.00036712,14]
[377576136,1754445126286,-1904.85,0.00036712,14]
[377576137,1754445126295,-400.0,0.00036712,14]
[377576138,1754445126305,-1056.9,0.00036712,14]
[377576139,1754445126314,-400.0,0.00036712,14]
[377576140,1754445126324,-400.0,0.00036712,14]
[377576141,1754445126333,-461.52,0.00036712,14]
[377576142,1754445126343,-400.0,0.00036712,14]
[377576143,1754445126352,-151.0,0.00036712,7]
[377576144,1754445126362,-400.0,0.00036712,14]
[377576145,1754445126371,-1030.82,0.00036712,14]
[377576146,1754445126381,-1475.54,0.00036712,14]
[377576147,1754445126390,-400.0,0.00036712,14]
[377576148,1754445126399,-422.51,0.00036712,14]
[377576149,1754445126409,-400.0,0.00036712,14]
[377576150,1754445126419,-400.0,0.00036712,14]
[377576151,1754445126429,-451.74,0.00036712,14]
[377576152,1754445126439,-981.32,0.00036712,14]
[377576153,1754445126448,-912.69,0.00036712,14]
[377576154,1754445126458,-910.24,0.00036712,14]
[377576155,1754445126468,-1838.27,0.00036712,14]
[377576156,1754445126478,-1750.74,0.00036712,14]
[377576157,1754445126487,-1148.89,0.00036712,14]
[377576158,1754445126496,-489.78,0.00036712,14]
[377576159,1754445126506,-1112.24,0.00036712,14]
[377576160,1754445126515,-3267.86,0.00036712,14]
[377576161,1754445126524,-1269.87,0.00036712,14]
[377576162,1754445126534,-2011.52,0.00036712,14]
[377576163,1754445126544,-400.0,0.00036712,14]
[377576164,1754445126554,-1943.34,0.00036712,14]
[377576165,1754445126570,-400.0,0.00036712,14]
[377576166,1754445126581,-400.0,0.00036712,14]
[377576167,1754445126592,-400.0,0.00036712,14]
[377576168,1754445126601,-400.0,0.00036712,14]
[377576169,1754445126610,-400.0,0.00036712,14]
[377576170,1754445126620,-400.0,0.00036712,14]
[377576171,1754445126629,-462.85,0.00036712,14]
[377576172,1754445126638,-1836.14,0.00036712,14]
[377576173,1754445126649,-2886.93,0.00036712,14]
[377576174,1754445126659,-1923.9,0.00036712,14]
[377576175,1754445126669,-500.55,0.00036712,14]
[377576176,1754445126678,-400.0,0.00036712,14]
[377576177,1754445126688,-788.92,0.00036712,14]
[377576178,1754445126698,-400.0,0.00036712,14]
[377576179,1754445126707,-635.4,0.00036712,14]
[377576180,1754445126716,-400.0,0.00036712,14]
[377576181,1754445126725,-719.56,0.00036712,14]
[377576182,1754445126736,-1842.81,0.00036712,14]
[377576183,1754445126744,-400.0,0.00036712,14]
[377576184,1754445126753,-3804.91,0.00036712,14]
[377576185,1754445126764,-1965.5,0.00036712,14]
[377576186,1754445126773,-400.0,0.00036712,14]
[377576187,1754445126782,-664.17,0.00036712,14]
[377576188,1754445126791,-528.91,0.00036712,14]
[377576189,1754445126800,-400.0,0.00036712,14]
[377576190,1754445126811,-400.0,0.00036712,14]
[377576191,1754445126821,-3285.06,0.00036712,14]
[377576192,1754445126830,-1611.48,0.00036712,14]
[377576193,1754445126839,-400.0,0.00036712,14]
[377576194,1754445126852,-300.0,0.00036712,14]
[377576195,1754445126862,-400.0,0.00036712,14]
[377576196,1754445126871,-400.0,0.00036712,14]
[377576197,1754445126880,-843.81,0.00036712,14]
[377576198,1754445126890,-664.72,0.00036712,14]
[377576199,1754445126899,-2286.3,0.00036712,14]
[377576200,1754445126909,-400.0,0.00036712,14]
[377576201,1754445126919,-400.0,0.00036712,14]
[377576202,1754445126929,-1228.65,0.00036712,14]
[377576203,1754445126939,-817.71,0.00036712,14]
[377576204,1754445126948,-400.0,0.00036712,14]
[377576205,1754445126958,-2285.89,0.00036712,14]
[377576206,1754445126967,-400.0,0.00036712,14]
[377576207,1754445126976,-688.12,0.00036712,14]
[377576208,1754445126985,-400.0,0.00036712,14]
[377576209,1754445126995,-400.0,0.00036712,14]
[377576210,1754445127006,-691.09,0.00036712,14]
[377576211,1754445127115,-534.6,0.00036712,14]
[377576212,1754445127124,-400.0,0.00036712,14]
[377576213,1754445127133,-826.81,0.00036712,14]
[377576214,1754445127143,-774.95,0.00036712,14]
[377576215,1754445127152,-707.35,0.00036712,14]
[377576216,1754445127161,-2483.22,0.00036712,14]
[377576217,1754445127170,-2387.79,0.00036712,14]
[377576218,1754445127178,-1988.08,0.00036712,14]
[377576219,1754445127188,-400.0,0.00036712,14]
[377576220,1754445127197,-400.0,0.00036712,14]
[377576221,1754445127206,-460.78,0.00036712,14]
[377576222,1754445127215,-400.0,0.00036712,14]
[377576223,1754445127224,-1013.02,0.00036712,14]
[377576224,1754445127233,-697.09,0.00036712,14]
[377576225,1754445127241,-3032.43,0.00036712,14]
[377576226,1754445127250,-455.45,0.00036712,14]
[377576227,1754445127260,-1254.27,0.00036712,14]
[377576228,1754445127269,-1325.26,0.00036712,14]
[377576229,1754445127279,-1290.32,0.00036712,14]
[377576230,1754445127288,-1704.34,0.00036712,14]
[377576231,1754445127298,-400.0,0.00036712,14]
[377576232,1754445127309,-2854.84,0.00036712,14]
[377576233,1754445127319,-400.0,0.00036712,14]
[377576234,1754445127331,-587.45,0.00036712,14]
[377576235,1754445127349,-400.0,0.00036712,14]
[377576236,1754445127358,-399.44533316,0.00036712,14]
[377576237,1754445127369,-400.0,0.00036712,14]
[377576238,1754445127379,-1693.96,0.00036712,14]
[377576239,1754445127388,-2049.87,0.00036712,14]
[377576240,1754445127397,-990.4,0.00036712,14]
[377576241,1754445127407,-3413.9,0.00036712,14]
[377576242,1754445127416,-400.0,0.00036712,14]
[377576243,1754445127426,-1042.69,0.00036712,14]
[377576244,1754445127435,-1556.67,0.00036712,14]
[377576245,1754445127445,-477.26,0.00036712,14]
[377576246,1754445127454,-400.0,0.00036712,14]
[377576247,1754445127463,-402.35,0.00036712,14]
[377576248,1754445127472,-400.0,0.00036712,14]
[377576249,1754445127480,-400.0,0.00036712,14]
[377576250,1754445127490,-400.0,0.00036712,14]
[377576251,1754445127498,-2127.16,0.00036712,14]
[377576252,1754445127509,-1286.74,0.00036712,14]
[377576253,1754445127518,-400.0,0.00036712,14]
[377576254,1754445127527,-650.36,0.00036712,14]
[377576255,1754445127536,-400.0,0.00036712,14]
[377576256,1754445127545,-400.0,0.00036712,14]
[377576257,1754445127554,-1272.91,0.00036712,14]
[377576258,1754445127564,-2983.78,0.00036712,14]
[377576259,1754445127573,-1167.76,0.00036712,14]
[377576260,1754445127583,-1978.73,0.00036712,14]
[377576261,1754445127594,-400.0,0.00036712,14]
[377576262,1754445127602,-537.68,0.00036712,14]
[377576263,1754445127612,-400.0,0.00036712,14]
[377576264,1754445127621,-1618.78,0.00036712,14]
[377576265,1754445127631,-481.3,0.00036712,14]
[377576266,1754445127640,-400.0,0.00036712,14]
[377576267,1754445127649,-1023.05,0.00036712,14]
[377576268,1754445127658,-400.0,0.00036712,14]
[377576269,1754445127667,-400.0,0.00036712,14]
[377576270,1754445127675,-456.75,0.00036712,14]
[377576271,1754445127685,-400.0,0.00036712,14]
[377576272,1754445127694,-400.0,0.00036712,14]
[377576273,1754445127703,-1487.38,0.00036712,14]
[377576274,1754445127712,-423.93,0.00036712,14]
[377576275,1754445127721,-400.0,0.00036712,14]
[377576276,1754445127731,-1101.66,0.00036712,14]
[377576277,1754445127740,-1906.16,0.00036712,14]
[377576278,1754445127749,-1382.08,0.00036712,14]
[377576279,1754445127759,-400.0,0.00036712,14]
[377576280,1754445127767,-400.0,0.00036712,14]
[377576281,1754445127777,-566.23,0.00036712,14]
[377576282,1754445127786,-1089.74,0.00036712,14]
[377576283,1754445127796,-400.0,0.00036712,14]
[377576284,1754445127806,-1123.2,0.00036712,14]
[377576285,1754445127815,-1398.154307,0.00036712,14]
[377576286,1754445127824,-1620.16,0.00036712,14]
[377576287,1754445127834,-400.0,0.00036712,14]
[377576288,1754445127846,-825.89,0.00036712,14]
[377576289,1754445127855,-554.16,0.00036712,14]
[377576290,1754445127864,-400.0,0.00036712,14]
[377576291,1754445127872,-2526.57,0.00036712,14]
[377576292,1754445127882,-400.0,0.00036712,14]
[377576293,1754445127891,-1043.57,0.00036712,14]
[377576294,1754445127900,-400.0,0.00036712,14]
[377576295,1754445127909,-400.0,0.00036712,14]
[377576296,1754445127920,-400.0,0.00036712,14]
[377576297,1754445127929,-400.0,0.00036712,14]
[377576298,1754445127938,-978.27,0.00036712,14]
[377576299,1754445127947,-400.0,0.00036712,14]
[377576300,1754445127956,-1121.455681,0.00036712,14]
[377576301,1754445127965,-870.7,0.00036712,14]
[377576302,1754445127974,-400.0,0.00036712,14]
[377576303,1754445127983,-1579.29,0.00036712,14]
[377576304,1754445127992,-2370.33,0.00036712,14]
[377576305,1754445128002,-400.0,0.00036712,14]
[377576306,1754445128012,-1431.57,0.00036712,14]
[377576307,1754445128021,-766.55,0.00036712,14]
[377576308,1754445128030,-1157.79,0.00036712,14]
[377576309,1754445128040,-400.0,0.00036712,14]
[377576310,1754445128049,-400.0,0.00036712,14]
[377576311,1754445128058,-1586.040996,0.00036712,14]
[377576312,1754445128067,-2107.14,0.00036712,14]
[377576313,1754445128076,-803.41,0.00036712,14]
[377576314,1754445128086,-400.0,0.00036712,14]
[377576315,1754445128095,-400.0,0.00036712,14]
[377576316,1754445128104,-509.96,0.00036712,14]
[377576317,1754445128113,-400.0,0.00036712,14]
[377576318,1754445128122,-400.0,0.00036712,14]
[377576319,1754445128132,-1003.35,0.00036712,14]
[377576320,1754445128141,-445.22,0.00036712,14]
[377576321,1754445128150,-400.0,0.00036712,14]
[377576322,1754445128159,-400.0,0.00036712,14]
[377576323,1754445128168,-1001.5,0.00036712,14]
[377576324,1754445128177,-2459.31,0.00036712,14]
[377576325,1754445128186,-243.385005,0.00036712,14]
[377576326,1754445128195,-596.41,0.00036712,14]
[377576327,1754445128204,-1798.86,0.00036712,14]
[377576328,1754445128213,-400.0,0.00036712,14]
[377576329,1754445128223,-163.835228,0.00036712,14]
[377576330,1754445128232,-1145.0,0.00036712,14]
[377576331,1754445128242,-400.0,0.00036712,14]
[377576332,1754445128251,-400.0,0.00036712,14]
[377576333,1754445128263,-400.0,0.00036712,14]
[377576334,1754445128273,-859.74,0.00036712,14]
[377576335,1754445128282,-400.0,0.00036712,14]
[377576336,1754445128291,-400.0,0.00036712,14]
[377576337,1754445128300,-2751.78,0.00036712,14]
[377576338,1754445128310,-416.83,0.00036712,14]
[377576339,1754445128319,-1520.4,0.00036712,14]
[377576340,1754445128328,-400.0,0.00036712,14]
[377576341,1754445128337,-1607.76,0.00036712,14]
[377576342,1754445128347,-1527.37,0.00036712,14]
[377576343,1754445128356,-439.67,0.00036712,14]
[377576344,1754445128365,-400.0,0.00036712,14]
[377576345,1754445128375,-2046.3,0.00036712,14]
[377576346,1754445128384,-2962.64,0.00036712,14]
[377576347,1754445128393,-400.0,0.00036712,14]
[377576348,1754445128402,-400.0,0.00036712,14]
[377576349,1754445128411,-400.0,0.00036712,14]
[377576350,1754445128420,-400.0,0.00036712,14]
[377576351,1754445128429,-1827.77,0.00036712,14]
[377576352,1754445128438,-400.0,0.00036712,14]
[377576353,1754445128446,-400.0,0.00036712,14]
[377576354,1754445128456,-2171.96,0.00036712,14]
[377576355,1754445128465,-2284.3,0.00036712,14]
[377576356,1754445128474,-400.0,0.00036712,14]
[377576357,1754445128483,-400.0,0.00036712,14]
[377576358,1754445128492,-1380.46,0.00036712,14]
[377576359,1754445128501,-400.0,0.00036712,14]
[377576360,1754445128511,-977.84,0.00036712,14]
[377576361,1754445128520,-459.21,0.00036712,14]
[377576362,1754445128529,-400.0,0.00036712,14]
[377576363,1754445128538,-400.0,0.00036712,14]
[377576364,1754445128547,-1461.2,0.00036712,14]
[377576365,1754445128556,-796.51,0.00036712,14]
[377576366,1754445128565,-400.0,0.00036712,14]
[377576367,1754445128574,-400.0,0.00036712,14]
[377576368,1754445128583,-400.0,0.00036712,14]
[377576369,1754445128592,-400.0,0.00036712,14]
[377576370,1754445128601,-1923.74,0.00036712,14]
[377576371,1754445128610,-2614.37,0.00036712,14]
[377576372,1754445128621,-769.37,0.00036712,14]
[377576373,1754445128631,-400.0,0.00036712,14]
[377576374,1754445128642,-1290.75,0.00036712,14]
[377576375,1754445128653,-1352.85,0.00036712,14]
[377576376,1754445128662,-1209.54,0.00036712,14]
[377576377,1754445128671,-757.96,0.00036712,14]
[377576378,1754445128680,-754.97,0.00036712,14]
[377576379,1754445128690,-841.08,0.00036712,14]
[377576380,1754445128699,-430.53561795,0.00036712,14]
[377576381,1754445128708,-772.6,0.00036712,14]
[377576382,1754445128717,-2094.9,0.00036712,14]
[377576383,1754445128726,-624.89,0.00036712,14]
[377576384,1754445128736,-400.0,0.00036712,14]
[377576385,1754445128746,-2492.87,0.00036712,14]
[377576386,1754445128755,-400.0,0.00036712,14]
[377576387,1754445128764,-400.0,0.00036712,14]
[377576388,1754445128774,-400.0,0.00036712,14]
[377576389,1754445128783,-1272.84,0.00036712,14]
[377576390,1754445128792,-400.0,0.00036712,14]
[377576391,1754445128801,-637.27,0.00036712,14]
[377576392,1754445128813,-1611.84,0.00036712,14]
[377576393,1754445128822,-400.0,0.00036712,14]
[377576394,1754445128831,-400.0,0.00036712,14]
[377576395,1754445128844,-2718.79,0.00036712,14]
[377576396,1754445128853,-1692.25,0.00036712,14]
[377576397,1754445128863,-400.0,0.00036712,14]
[377576398,1754445128872,-160.500847,0.00036712,7]
[377576399,1754445128882,-652.68,0.00036712,14]
[377576400,1754445128891,-1943.43,0.00036712,14]
[377576401,1754445128900,-1591.38,0.00036712,14]
[377576402,1754445128910,-400.0,0.00036712,14]
[377576403,1754445128920,-400.0,0.00036712,14]
[377576404,1754445128929,-1315.11,0.00036712,14]
[377576405,1754445128939,-756.43,0.00036712,14]
[377576406,1754445128948,-400.0,0.00036712,14]
[377576407,1754445128958,-400.0,0.00036712,14]
[377576408,1754445128967,-2237.96,0.00036712,14]
[377576409,1754445128977,-420.22,0.00036712,14]
[377576410,1754445128987,-400.0,0.00036712,14]
[377576411,1754445128996,-1894.82,0.00036712,14]
[377576412,1754445129006,-819.6,0.00036712,14]
[377576413,1754445129015,-865.96,0.00036712,14]
[377576414,1754445129024,-2053.25,0.00036712,14]
[377576415,1754445129033,-2575.51,0.00036712,14]
[377576416,1754445129042,-400.0,0.00036712,14]
[377576417,1754445129051,-400.0,0.00036712,14]
[377576418,1754445129060,-2031.47,0.00036712,14]
[377576419,1754445129069,-1871.26,0.00036712,14]
[377576420,1754445129078,-260.44344665,0.00036712,10]
[377576421,1754445129088,-1397.46,0.00036712,14]
[377576422,1754445129099,-400.0,0.00036712,14]
[377576423,1754445129108,-400.0,0.00036712,14]
[377576424,1754445129117,-1450.07,0.00036712,14]
[377576425,1754445129126,-400.0,0.00036712,14]
[377576426,1754445129135,-1199.57,0.00036712,14]
[377576427,1754445129145,-441.04,0.00036712,14]
[377576428,1754445129154,-400.0,0.00036712,14]
[377576429,1754445129163,-400.0,0.00036712,14]
[377576430,1754445129173,-400.0,0.00036712,14]
[377576431,1754445129182,-1209.5,0.00036712,14]
[377576432,1754445129191,-400.0,0.00036712,14]
[377576433,1754445129200,-418.92,0.00036712,14]
[377576434,1754445129210,-400.0,0.00036712,14]
[377576435,1754445129219,-400.0,0.00036712,14]
[377576436,1754445129228,-400.0,0.00036712,14]
[377576437,1754445129238,-3525.98,0.00036712,14]
[377576438,1754445129247,-1221.92,0.00036712,14]
[377576439,1754445129257,-1752.0,0.00036712,14]
[377576440,1754445129265,-473.14,0.00036712,14]
[377576441,1754445129274,-400.0,0.00036712,14]
[377576442,1754445129283,-2230.94,0.00036712,14]
[377576443,1754445129293,-1920.97,0.00036712,14]
[377576444,1754445129302,-1237.41,0.00036712,14]
[377576445,1754445129312,-526.37,0.00036712,14]
[377576446,1754445129320,-400.0,0.00036712,14]
[377576447,1754445129329,-927.89,0.00036712,14]
[377576448,1754445129338,-400.97590508,0.00036712,14]
[377576449,1754445129348,-400.0,0.00036712,14]
[377576450,1754445129357,-400.0,0.00036712,14]
[377576451,1754445129367,-400.0,0.00036712,14]
[377576452,1754445129376,-400.0,0.00036712,14]
[377576453,1754445129385,-1273.79,0.00036712,14]
[377576454,1754445129394,-400.0,0.00036712,14]
[377576455,1754445129403,-400.0,0.00036712,14]
[377576456,1754445129412,-2062.42,0.00036712,14]
[377576457,1754445129422,-2103.57,0.00036712,14]
[377576458,1754445129431,-650.32,0.00036712,14]
[377576459,1754445129440,-400.0,0.00036712,14]
[377576460,1754445129449,-2044.76,0.00036712,14]
[377576461,1754445129459,-1965.21,0.00036712,14]
[377576462,1754445129469,-733.36,0.00036712,14]
[377576463,1754445129479,-514.18,0.00036712,14]
[377576464,1754445129487,-1869.68,0.00036712,14]
[377576465,1754445129497,-400.0,0.00036712,14]
[377576466,1754445129506,-189.55172067,0.00036712,14]
[377576467,1754445129516,-1998.0,0.00036712,14]
[377576468,1754445129525,-1802.74,0.00036712,14]
[377576469,1754445129534,-400.0,0.00036712,14]
[377576470,1754445129543,-2287.14,0.00036712,14]
[377576471,1754445129552,-400.0,0.00036712,14]
[377576472,1754445129561,-403.94,0.00036712,14]
[377576473,1754445129571,-407.10405005,0.00036712,14]
[377576474,1754445129581,-522.06,0.00036712,14]
[377576475,1754445129591,-3124.69,0.00036712,2]
[377576476,1754445129600,-2221.48,0.00036712,14]
[377576477,1754445129610,-1141.51,0.00036712,14]
[377576478,1754445129619,-653.24,0.00036712,14]
[377576479,1754445129628,-2248.73,0.00036712,14]